bitfinex/quotes_SOLUSD_20260114
["timestamp","ask_amount","ask_price","bid_price","bid_amount"]
[1768419979768,3.21615346,146.65,146.61,0.8783369]
[1768419979939,2.4970791,146.64,146.61,0.8783369]
[1768419980856,9.3168364,146.64,146.61,0.8783369]
[1768419981564,9.28683641,146.64,146.61,0.8783369]
[1768419982058,9.94059711,146.64,146.61,0.2]
[1768419982265,2.4970791,146.63,146.61,0.2]
[1768419982439,2.46707911,146.63,146.61,0.2]
[1768419982832,7.47284476,146.65,146.61,0.85787197]
[1768419983135,9.96992386,146.65,146.61,0.85787197]
[1768419986374,6.81881416,146.66,146.62,0.65787197]
[1768419986545,9.31589326,146.66,146.62,0.65787197]
[1768419987046,9.96965396,146.66,146.62,0.65787197]
[1768419987435,0.6537607,146.64,146.61,0.85787197]
[1768419987648,0.62376071,146.64,146.61,0.2]
[1768419988766,23.86504353,146.66,146.61,0.85787197]
[1768419989064,6.81929232,146.65,146.61,0.85787197]
[1768419989260,9.31637142,146.65,146.61,0.85787197]
[1768419989655,9.97013212,146.65,146.61,0.85787197]
[1768419990571,7.47178756,146.67,146.63,0.65787197]
[1768419990750,9.96825961,146.69,146.64,0.65787197]
[1768419991065,7.47118051,146.69,146.66,0.65787197]
[1768419991652,6.81741981,146.69,146.66,0.65787197]
[1768419991858,19.89052587,146.7,146.66,3.15495107]
[1768419992162,12.42,146.7,146.67,3.15495107]
[1768419992666,12.42,146.7,146.67,0.65787197]
[1768419992864,12.42,146.7,146.68,0.65787197]
[1768419993249,12.42,146.7,146.66,0.65787197]
[1768419993464,12.42,146.7,146.67,0.65787197]
[1768419994264,12.42,146.7,146.67,3.15495107]
[1768419995171,12.42,146.7,146.67,0.65787197]
[1768419996073,12.42,146.7,146.67,3.15495107]
[1768419997279,12.42,146.7,146.67,0.65787197]
[1768419997792,12.42,146.7,146.67,3.15495107]
[1768419998155,12.42,146.7,146.67,0.65787197]
[1768419998357,12.42,146.7,146.67,3.15495107]
[1768420000064,12.42,146.7,146.67,0.65787197]
[1768420000560,12.42,146.7,146.67,3.15495107]
[1768420002368,12.42,146.7,146.67,0.65787197]
[1768420002580,12.42,146.7,146.67,3.15495107]
[1768420005079,13.0737607,146.7,146.66,62.15787197]
[1768420005279,13.0737607,146.7,146.67,3.15495107]
[1768420005579,12.42,146.7,146.67,3.15495107]
[1768420005780,0.6537607,146.72,146.69,0.65787197]
[1768420006076,22.09604088,146.74,146.7,3.15495107]
[1768420006280,22.09604088,146.74,146.71,2.4970791]
[1768420006458,22.09604088,146.74,146.7,3.15495107]
[1768420006773,22.09604088,146.74,146.71,0.65787197]
[1768420006959,22.09604088,146.74,146.67,85.3630649]
[1768420006960,21.44228018,146.74,146.72,3.15495107]
[1768420007563,9.02228018,146.74,146.72,3.15495107]
[1768420007762,9.02228018,146.74,146.73,2.4970791]
[1768420007962,13.0737607,146.78,146.74,0.65787197]
[1768420008264,13.0737607,146.78,146.74,3.15495107]
[1768420008772,12.42,146.78,146.75,3.15495107]
[1768420008979,0.1,146.8,146.77,0.65787197]
[1768420009276,7.56587038,146.8,146.75,3.15495107]
[1768420009477,0.7537607,146.8,146.76,0.65787197]
[1768420009683,0.7537607,146.8,146.76,3.15495107]
[1768420010280,7.56579617,146.8,146.76,3.15495107]
[1768420010989,0.72030241,146.79,146.73,0.70259378]
[1768420011167,0.72030241,146.78,146.73,3.19967288]
[1768420011367,0.72030241,146.78,146.74,0.70259378]
[1768420011863,0.72030241,146.78,146.74,3.19967288]
[1768420012080,0.72030241,146.79,146.75,3.19967288]
[1768420012687,0.82030241,146.8,146.76,0.70259378]
[1768420012885,0.82030241,146.8,146.76,3.19967288]
[1768420013985,7.63241182,146.8,146.76,0.70259378]
[1768420014193,0.72030241,146.79,146.74,10.01431685]
[1768420016192,0.72030241,146.79,146.75,0.70259378]
[1768420016393,0.72030241,146.79,146.74,6.81464397]
[1768420016394,0.72030241,146.79,146.74,10.01431685]
[1768420017076,0.72030241,146.78,146.74,0.70259378]
[1768420017278,0.72030241,146.78,146.74,3.19967288]
[1768420018674,0.72030241,146.78,146.75,2.4970791]
[1768420019074,0.72030241,146.78,146.74,0.70259378]
[1768420019389,0.72030241,146.78,146.75,2.4970791]
[1768420021710,0.72030241,146.78,146.75,9.31135341]
[1768420023205,0.72030241,146.78,146.74,0.70259378]
[1768420023405,0.72030241,146.76,146.71,0.70259378]
[1768420023582,0.72030241,146.75,146.71,6.81583446]
[1768420024782,0.72030241,146.74,146.71,6.81583446]
[1768420024983,0.72030241,146.73,146.7,6.81642279]
[1768420025306,0.72030241,146.77,146.71,0.70259378]
[1768420025498,13.14030241,146.78,146.73,0.70259378]
[1768420025699,13.14030241,146.78,146.74,0.70259378]
[1768420025906,15.63738151,146.78,146.74,0.70259378]
[1768420026299,0.72030241,146.77,146.74,0.70259378]
[1768420026490,0.72030241,146.76,146.72,0.70259378]
[1768420026687,0.69030242,146.76,146.72,0.70259378]
[1768420026885,0.69030242,146.76,146.73,6.81523887]
[1768420027481,0.69030242,146.76,146.73,7.51783265]
[1768420027891,0.69030242,146.76,146.73,6.81523887]
[1768420028118,2.4970791,146.75,146.71,7.51838194]
[1768420028613,3.21738151,146.75,146.71,0.70259378]
[1768420028915,3.21738151,146.75,146.71,7.51849123]
[1768420029403,0.72030241,146.75,146.71,7.51849123]
[1768420029594,3.21738151,146.76,146.72,0.70259378]
[1768420031412,3.21738151,146.76,146.72,7.51810423]
[1768420032891,0.72030241,146.76,146.72,7.51810423]
[1768420033098,3.21738151,146.76,146.72,7.51810423]
[1768420033412,0.72030241,146.75,146.71,6.81616795]
[1768420033591,0.72030241,146.75,146.71,7.51876173]
[1768420034607,3.21738151,146.75,146.71,6.81616795]
[1768420034821,0.72030241,146.71,146.66,0.70259378]
[1768420035002,3.21738151,146.7,146.66,7.52075095]
[1768420035504,0.72030241,146.7,146.66,7.52075095]
[1768420035701,3.21738151,146.7,146.66,7.52075095]
[1768420035905,3.21738151,146.7,146.67,6.81799101]
[1768420036608,2.91504668,146.7,146.67,6.81799101]
[1768420036818,2.91504668,146.7,146.66,7.52089876]
[1768420037196,2.4970791,146.7,146.65,7.52134678]
[1768420037808,2.4970791,146.7,146.66,0.70259378]
[1768420038010,2.4970791,146.7,146.66,7.52100779]
[1768420038806,2.63243354,146.7,146.66,7.52100779]
[1768420040122,0.71445293,146.69,146.65,7.52140398]
[1768420040326,2.4970791,146.7,146.66,0.67331126]
[1768420041429,3.90084993,146.7,146.66,0.67331126]
[1768420042231,4.56520894,146.7,146.66,0.67331126]
[1768420044009,0.13133842,146.69,146.66,0.67331126]
[1768420045426,0.10133843,146.69,146.66,0.67331126]
[1768420045622,6.81570338,146.72,146.66,0.67331126]
[1768420045827,3.90084993,146.7,146.66,0.67331126]
[1768420046231,3.90084993,146.7,146.65,61.5]
[1768420046403,23.85496183,146.72,146.63,87.16918376]
[1768420046404,3.90084993,146.67,146.63,87.16918376]
[1768420046724,3.90084993,146.66,146.63,25.66918376]
[1768420046908,3.87084994,146.66,146.63,25.66918376]
[1768420047505,3.90084993,146.68,146.64,0.6539655]
[1768420047723,0.07193844,146.68,146.64,7.47335645]
[1768420047916,3.97278837,146.68,146.64,7.47335645]
[1768420048732,3.97278837,146.69,146.65,0.6539655]
[1768420048914,3.90084993,146.68,146.65,0.6539655]
[1768420049515,3.90084993,146.68,146.63,33.14284536]
[1768420049516,0.0778034,146.67,146.63,33.14284536]
[1768420049830,3.97865333,146.67,146.63,33.14284536]
[1768420050221,3.97865333,146.67,146.63,26.32314926]
[1768420050734,3.90084993,146.65,146.63,25.66918376]
[1768420050918,0.64693773,146.64,146.63,25.57909738]
[1768420051520,4.54131828,146.65,146.63,25.57909738]
[1768420052328,3.90084993,146.66,146.63,25.57909738]
[1768420052825,11.35987565,146.66,146.63,25.57909738]
[1768420054739,7.45902572,146.66,146.63,25.57909738]
[1768420054921,11.35987565,146.66,146.63,25.57909738]
[1768420055267,0.64046835,146.68,146.63,26.23306288]
[1768420055542,0.64046835,146.68,146.64,0.6539655]
[1768420055543,4.54131828,146.68,146.64,0.6539655]
[1768420055712,11.35894025,146.68,146.64,0.6539655]
[1768420056550,3.90084993,146.67,146.64,0.6539655]
[1768420056735,7.46037779,146.63,146.61,0.2]
[1768420057036,3.90084993,146.62,146.6,0.2]
[1768420058943,7.46037779,146.63,146.6,0.2]
[1768420059242,3.90084993,146.62,146.6,0.2]
[1768420059434,0.64046835,146.63,146.6,0.2]
[1768420059636,3.90084993,146.63,146.6,0.8539655]
[1768420061536,11.36079277,146.64,146.6,0.8539655]
[1768420062443,3.90084993,146.65,146.61,0.6539655]
[1768420062645,11.35976987,146.67,146.62,0.6539655]
[1768420063147,7.45891994,146.67,146.63,0.6539655]
[1768420063725,6.81845159,146.67,146.63,0.6539655]
[1768420064627,6.81845159,146.67,146.63,4.55481543]
[1768420065343,7.4581602,146.68,146.64,4.55481543]
[1768420065541,7.4581602,146.68,146.64,0.6539655]
[1768420065750,0.63801183,146.66,146.61,3.90084993]
[1768420066046,0.63801183,146.66,146.61,4.55481543]
[1768420066047,0.39724809,146.65,146.61,4.55481543]
[1768420066549,0.39724809,146.65,146.6,4.75481543]
[1768420066850,4.29809802,146.65,146.61,0.6539655]
[1768420067041,0.39724809,146.65,146.61,0.6539655]
[1768420067245,4.29809802,146.65,146.61,0.6539655]
[1768420068851,11.11732692,146.65,146.61,0.6539655]
[1768420069655,6.8192289,146.65,146.61,0.6539655]
[1768420069946,6.8192289,146.65,146.62,0.6539655]
[1768420070325,11.38377119,146.66,146.62,0.6539655]
[1768420070526,10.71941218,146.66,146.62,0.6539655]
[1768420070732,11.38551759,146.67,146.62,0.6539655]
[1768420071338,0.36908643,146.66,146.62,0.6539655]
[1768420074557,7.18764269,146.66,146.62,0.6539655]
[1768420076855,11.38540463,146.67,146.63,0.65959661]
[1768420077247,22.08362787,146.69,146.63,0.65959661]
[1768420077555,0.66348423,146.68,146.64,0.65959661]
[1768420078462,7.48122044,146.68,146.64,0.65959661]
[1768420079758,11.38207037,146.68,146.64,0.65959661]
[1768420080356,7.48122044,146.68,146.64,0.65959661]
[1768420080860,25.98448188,146.69,146.65,0.65959661]
[1768420081158,15.26635434,146.69,146.67,0.65959661]
[1768420081744,15.26635434,146.69,146.66,62.15959661]
[1768420081939,0.66056969,146.68,146.65,0.65959661]
[1768420082341,15.93281229,146.69,146.65,0.65959661]
[1768420083159,19.83366222,146.69,146.65,0.65959661]
[1768420083354,19.16720427,146.69,146.66,0.65959661]
[1768420083549,15.26635434,146.69,146.66,0.65959661]
[1768420083870,19.16720427,146.69,146.66,0.65959661]
[1768420084367,19.5362907,146.69,146.65,7.47842217]
[1768420085168,15.26635434,146.69,146.66,0.65959661]
[1768420086169,13.30562687,146.69,146.67,3.90084993]
[1768420086465,13.30562687,146.69,146.66,27.76556739]
[1768420087069,13.30562687,146.69,146.67,3.90084993]
[1768420087269,0.66645795,146.73,146.68,3.90084993]
[1768420087472,0.66645795,146.73,146.69,3.90084993]
[1768420088971,0.66645795,146.73,146.69,10.71779885]
[1768420089274,13.08645795,146.74,146.7,3.90084993]
[1768420089468,13.08645795,146.74,146.69,10.71779885]
[1768420090678,13.08645795,146.74,146.69,72.21779885]
[1768420091376,0.66645795,146.71,146.69,61.5]
[1768420092579,0.66645795,146.7,146.69,60.775]
[1768420092759,0.66645795,146.7,146.66,67.59331018]
[1768420092953,0.66645795,146.7,146.66,68.25290679]
[1768420093577,0.66645795,146.69,146.66,60.775]
[1768420093754,0.66645795,146.68,146.66,60.775]
[1768420094160,0.66645795,146.68,146.63,7.47933931]
[1768420094679,0.66645795,146.68,146.64,6.81939077]
[1768420094852,0.66645795,146.68,146.64,7.47898738]
[1768420098490,0.66645795,146.67,146.63,7.47948339]
[1768420098859,0.66645795,146.68,146.64,0.65959661]
[1768420099054,7.48321285,146.7,146.64,4.56044654]
[1768420099259,0.66645795,146.69,146.65,0.65959661]
[1768420100264,4.56730788,146.69,146.65,0.65959661]
[1768420100580,0.66645795,146.69,146.65,0.65959661]
[1768420100760,0.66645795,146.69,146.65,7.47841172]
[1768420101467,7.52371327,146.71,146.66,0.70529718]
[1768420101782,0.70733934,146.7,146.66,0.70529718]
[1768420102482,3.20375722,146.71,146.66,0.70529718]
[1768420103182,0.70733934,146.71,146.67,0.70529718]
[1768420104383,0.70733934,146.7,146.66,68.29834455]
[1768420106585,0.70733934,146.7,146.66,61.48029718]
[1768420106962,7.52432683,146.7,146.66,61.48029718]
[1768420107159,0.70733934,146.68,146.66,60.775]
[1768420107366,2.49641788,146.69,146.62,60.775]
[1768420107367,0.70733934,146.66,146.62,60.775]
[1768420107586,3.20375722,146.65,146.6,0.90529718]
[1768420108088,12.42,146.69,146.6,0.2]
[1768420108089,0.70733934,146.63,146.6,0.2]
[1768420108301,0.70733934,146.65,146.61,0.70529718]
[1768420108794,0.70733934,146.65,146.61,7.52608287]
[1768420109589,0.70733934,146.65,146.61,6.82078569]
[1768420112986,0.70733934,146.65,146.62,2.49641788]
[1768420115793,0.70733934,146.65,146.61,10.02250075]
[1768420115983,0.70733934,146.65,146.6,67.79606986]
[1768420116189,0.70733934,146.65,146.61,6.82081608]
[1768420116773,0.70733934,146.64,146.6,0.2]
[1768420116978,0.70733934,146.63,146.6,0.2]
[1768420117894,0.70733934,146.63,146.6,2.69641788]
[1768420118085,0.70733934,146.63,146.61,2.49641788]
[1768420119098,0.70733934,146.64,146.61,9.31684537]
[1768420120497,0.70733934,146.64,146.6,7.0210971]
[1768420120688,0.70733934,146.64,146.6,2.69641788]
[1768420121080,0.70733934,146.64,146.6,9.51764102]
[1768420121478,0.70733934,146.63,146.6,0.2]
[1768420122697,0.70733934,146.63,146.6,7.02121478]
[1768420122895,0.70733934,146.64,146.6,7.72651196]
[1768420123295,0.70733934,146.65,146.61,3.20171506]
[1768420123505,3.20375722,146.66,146.62,0.70529718]
[1768420123882,0.70733934,146.66,146.62,7.52553692]
[1768420124392,0.70733934,146.66,146.62,6.82023974]
[1768420124593,0.70733934,146.66,146.61,10.02235501]
[1768420124793,0.70733934,146.65,146.61,7.52593713]
[1768420124981,0.70733934,146.65,146.61,10.02235501]
[1768420128586,0.70733934,146.65,146.61,7.52593713]
[1768420128882,0.70733934,146.64,146.6,67.79611582]
[1768420129401,0.70733934,146.64,146.6,70.99783088]
[1768420130214,0.70733934,146.65,146.61,7.52605302]
[1768420131693,0.70243558,146.67,146.63,0.71947379]
[1768420132889,0.70243558,146.66,146.62,0.71947379]
[1768420133291,0.70243558,146.66,146.62,3.21589167]
[1768420134310,7.52064359,146.67,146.63,3.21589167]
[1768420134492,7.52064359,146.67,146.63,0.71947379]
[1768420134895,7.52064359,146.67,146.63,3.21589167]
[1768420135117,0.70243558,146.66,146.63,0.71947379]
[1768420137515,7.52093473,146.66,146.63,0.71947379]
[1768420139810,0.70243558,146.65,146.62,63.99089167]
[1768420141502,7.52093473,146.66,146.62,63.99089167]
[1768420141928,7.52093473,146.66,146.62,61.49447379]
[1768420142909,7.52093473,146.66,146.62,63.99089167]
[1768420143512,7.52093473,146.66,146.62,3.21589167]
[1768420144316,2.49641788,146.68,146.62,3.21589167]
[1768420144317,7.51999761,146.68,146.63,0.71947379]
[1768420144615,7.51999761,146.68,146.65,0.71947379]
[1768420144824,2.49641788,146.7,146.66,0.71947379]
[1768420144825,0.70243558,146.7,146.66,0.71947379]
[1768420145120,7.51923442,146.7,146.66,0.71947379]
[1768420145324,0.70243558,146.69,146.65,63.27141788]
[1768420145525,0.70243558,146.69,146.65,60.775]
[1768420146024,0.70243558,146.69,146.65,61.49447379]
[1768420147125,7.51966857,146.69,146.65,63.99089167]
[1768420148823,0.70243558,146.68,146.65,63.99089167]
[1768420149411,0.70243558,146.69,146.66,3.21589167]
[1768420149614,0.70243558,146.69,146.65,3.21589167]
[1768420153712,7.51867184,146.71,146.67,0.71947379]
[1768420153911,7.51867184,146.71,146.68,0.71947379]
[1768420154509,6.81623626,146.71,146.68,0.71947379]
[1768420154722,0.70243558,146.71,146.68,0.71947379]
[1768420154925,0.70243558,146.71,146.67,3.21589167]
[1768420155525,0.70243558,146.71,146.66,10.03426977]
[1768420155704,0.70243558,146.71,146.67,2.49641788]
[1768420155907,0.70243558,146.71,146.67,3.21589167]
[1768420156218,0.70243558,146.71,146.67,10.03391221]
[1768420158531,0.70243558,146.71,146.67,3.21589167]
[1768420159529,0.70243558,146.7,146.66,60.775]
[1768420159740,0.70243558,146.69,146.66,60.775]
[1768420161151,0.70243558,146.69,146.65,0.71633548]
[1768420162736,0.66745222,146.68,146.64,70.76065629]
[1768420162930,0.66745222,146.68,146.65,0.66993444]
[1768420164230,0.66745222,146.68,146.65,4.57079481]
[1768420164544,0.66745222,146.69,146.65,4.57079481]
[1768420164735,7.48424708,146.7,146.66,4.57079481]
[1768420165043,0.66745222,146.7,146.66,11.38924115]
[1768420165247,0.66745222,146.71,146.68,4.57079481]
[1768420165454,0.66745222,146.71,146.68,0.66993444]
[1768420166034,0.66745222,146.71,146.67,4.57079481]
[1768420166434,0.66745222,146.71,146.67,11.38878639]
[1768420166629,0.66745222,146.71,146.67,7.48792602]
[1768420166830,0.66745222,146.71,146.68,4.57079481]
[1768420167032,19.92281543,146.73,146.69,4.57079481]
[1768420167250,19.92281543,146.73,146.69,0.66993444]
[1768420167462,19.92281543,146.73,146.69,4.57079481]
[1768420167655,0.66745222,146.72,146.69,4.57079481]
[1768420167949,0.66745222,146.72,146.68,4.57079481]
[1768420168153,0.66745222,146.72,146.68,3.90086037]
[1768420169445,0.66745222,146.71,146.68,3.90086037]
[1768420169845,0.66745222,146.71,146.68,4.57079481]
[1768420172247,19.25539837,146.73,146.69,4.57079481]
[1768420172248,0.66745222,146.72,146.69,4.57079481]
[1768420172546,12.44,146.73,146.7,0.66993444]
[1768420172752,7.4818997,146.75,146.71,0.66993444]
[1768420172936,0.66745222,146.74,146.71,0.66993444]
[1768420173450,0.66745222,146.74,146.68,84.63643192]
[1768420173641,0.66745222,146.74,146.7,4.57079481]
[1768420174231,7.4818997,146.75,146.71,0.66993444]
[1768420174754,7.4818997,146.75,146.71,4.57079481]
[1768420175002,0.66745222,146.75,146.71,4.57079481]
[1768420175161,7.4818905,146.75,146.71,0.66993444]
[1768420176353,0.66745222,146.74,146.71,0.66993444]
[1768420177134,7.4818905,146.75,146.71,0.66993444]
[1768420177335,0.66745222,146.76,146.72,0.66993444]
[1768420177640,0.66745222,146.76,146.71,10.71669286]
[1768420178761,0.66745222,146.75,146.7,6.81643511]
[1768420178944,0.66745222,146.75,146.69,67.59194781]
[1768420179127,0.66745222,146.75,146.7,10.71743882]
[1768420179457,0.66745222,146.75,146.7,11.38243882]
[1768420179658,4.56831259,146.74,146.69,65.34086037]
[1768420179845,0.66745222,146.73,146.69,64.67586037]
[1768420180951,0.66745222,146.72,146.69,64.67586037]
[1768420181150,0.66745222,146.72,146.69,0.665]
[1768420181338,0.66745222,146.72,146.66,13.085]
[1768420181539,0.66745222,146.72,146.67,4.56586037]
[1768420184542,0.66745222,146.71,146.67,4.56586037]
[1768420186761,0.66745222,146.71,146.67,11.38381577]
[1768420188247,0.66745222,146.71,146.67,4.56586037]
[1768420189348,0.66745222,146.71,146.67,0.665]
[1768420189546,0.66745222,146.71,146.67,4.56586037]
[1768420190856,0.66745222,146.71,146.67,11.38386847]
[1768420193058,0.66745222,146.71,146.67,6.8180081]
[1768420194270,0.71910013,146.68,146.66,60.775]
[1768420194451,3.90086037,146.69,146.64,68.26076669]
[1768420195471,3.90086037,146.69,146.65,0.66642637]
[1768420196468,0.71910013,146.68,146.65,0.66642637]
[1768420198944,0.71910013,146.68,146.64,61.44142637]
[1768420198945,0.71910013,146.67,146.64,61.44142637]
[1768420199157,0.71910013,146.67,146.64,0.66642637]
[1768420200557,4.6199605,146.7,146.65,0.66642637]
[1768420200762,0.71910013,146.69,146.65,0.66642637]
[1768420201475,0.71910013,146.69,146.65,7.48532868]
[1768420201672,0.71910013,146.69,146.66,0.66642637]
[1768420202070,0.71910013,146.69,146.65,0.66642637]
[1768420202262,0.71910013,146.68,146.65,0.66642637]
[1768420202462,0.71910013,146.68,146.63,0.66642637]
[1768420202677,0.71910013,146.66,146.63,0.66642637]
[1768420204678,0.71910013,146.66,146.61,3.90086037]
[1768420204679,0.71910013,146.65,146.61,0.66642637]
[1768420204876,0.71910013,146.64,146.6,0.86642637]
[1768420205074,0.71910013,146.63,146.6,0.2]
[1768420205387,4.6199605,146.63,146.6,0.2]
[1768420205677,0.71910013,146.65,146.61,0.66642637]
[1768420206272,4.6199605,146.65,146.61,0.66642637]
[1768420206466,0.71910013,146.65,146.61,7.48719959]
[1768420206779,23.85814273,146.67,146.62,0.66642637]
[1768420206972,3.90086037,146.66,146.62,0.66642637]
[1768420207176,4.6199605,146.65,146.62,0.66642637]
[1768420207485,3.90086037,146.65,146.62,0.66642637]
[1768420208282,0.71910013,146.66,146.63,0.66642637]
[1768420208585,3.90086037,146.65,146.63,0.66642637]
[1768420209072,0.71910013,146.66,146.63,0.66642637]
[1768420209272,3.90086037,146.65,146.63,0.66642637]
[1768420210383,0.71910013,146.66,146.63,0.66642637]
[1768420210684,12.42,146.67,146.64,0.66642637]
[1768420210984,3.90086037,146.67,146.64,0.66642637]
[1768420211373,4.6199605,146.68,146.64,0.66642637]
[1768420212385,3.90086037,146.68,146.65,0.66642637]
[1768420212586,3.90086037,146.72,146.67,0.66642637]
[1768420212587,0.71910013,146.72,146.67,0.66642637]
[1768420212769,4.6199605,146.71,146.67,0.66642637]
[1768420213168,0.71910013,146.69,146.65,0.66642637]
[1768420214090,0.71910013,146.69,146.66,0.66642637]
[1768420214469,4.6199605,146.71,146.66,0.66642637]
[1768420214665,0.71910013,146.71,146.67,0.66642637]
[1768420215291,0.71910013,146.72,146.68,0.66642637]
[1768420215466,4.6199605,146.72,146.68,0.66642637]
[1768420215661,0.71910013,146.71,146.68,0.66642637]
[1768420216185,11.43625484,146.71,146.68,0.66642637]
[1768420217582,7.53539447,146.71,146.68,0.66642637]
[1768420218787,0.71910013,146.69,146.65,7.48520494]
[1768420220090,0.71910013,146.69,146.66,0.66642637]
[1768420220390,0.65895393,146.7,146.66,0.66642637]
[1768420220775,11.37610864,146.71,146.66,0.66642637]
[1768420221395,7.47524827,146.71,146.67,0.68360008]
[1768420221689,0.72042145,146.73,146.69,0.68360008]
[1768420221889,0.72042145,146.74,146.7,0.68360008]
[1768420222098,0.72042145,146.74,146.71,0.68360008]
[1768420222389,7.53533113,146.74,146.71,0.68360008]
[1768420223488,20.87340496,146.76,146.72,0.68360008]
[1768420223698,3.21528971,146.74,146.7,0.68360008]
[1768420224472,0.72042145,146.74,146.7,0.68360008]
[1768420224790,0.72042145,146.74,146.71,0.68360008]
[1768420225100,0.72042145,146.75,146.72,0.68360008]
[1768420225396,2.49486826,146.76,146.72,0.62360008]
[1768420225893,2.49486826,146.75,146.72,0.62360008]
[1768420226503,2.49486826,146.79,146.72,0.62360008]
[1768420226799,2.49486826,146.75,146.72,0.62360008]
[1768420227692,0.23447449,146.75,146.72,0.62360008]
[1768420228303,3.21043024,146.74,146.7,0.68360008]
[1768420229282,3.21528971,146.75,146.7,0.68360008]
[1768420229481,7.5351723,146.75,146.7,0.68360008]
[1768420229695,10.03004056,146.75,146.7,0.68360008]
[1768420230302,7.5351723,146.75,146.7,0.68360008]
[1768420230480,10.03004056,146.75,146.71,0.68360008]
[1768420230679,9.30961911,146.75,146.71,0.68360008]
[1768420231290,10.02932593,146.76,146.71,0.68360008]
[1768420231493,10.02932593,146.76,146.72,0.68360008]
[1768420232191,2.72934275,146.75,146.71,61.45860008]
[1768420232916,9.30832329,146.77,146.72,0.68360008]
[1768420233201,6.81308103,146.78,146.73,0.68360008]
[1768420233384,2.72934275,146.77,146.73,0.68360008]
[1768420234190,6.81384573,146.76,146.73,0.68360008]
[1768420235584,7.52940771,146.76,146.72,0.68360008]
[1768420235993,10.02427597,146.76,146.72,0.68360008]
[1768420236202,0.71079921,146.74,146.7,0.68360008]
[1768420236411,3.21528971,146.75,146.71,0.68360008]
[1768420236583,0.72042145,146.75,146.71,0.68360008]
[1768420237595,0.23447449,146.74,146.7,62.18360008]
[1768420237795,0.23447449,146.74,146.71,0.68360008]
[1768420238197,10.02977734,146.75,146.71,0.68360008]
[1768420238400,7.53490908,146.75,146.71,0.68360008]
[1768420238702,10.02977734,146.75,146.7,68.31659899]
[1768420238905,3.21528971,146.74,146.7,61.5]
[1768420239106,0.72042145,146.71,146.66,20.66127715]
[1768420239292,0.72042145,146.71,146.66,6.81822381]
[1768420240021,0.72042145,146.7,146.65,19.23888816]
[1768420240311,10.03199201,146.7,146.65,19.23888816]
[1768420240686,0.72042145,146.71,146.66,0.68360008]
[1768420240887,3.21528971,146.71,146.66,0.68360008]
[1768420242207,2.49486826,146.71,146.67,0.68360008]
[1768420243018,17.03636418,146.75,146.67,0.68360008]
[1768420243191,2.49486826,146.72,146.67,0.68360008]
[1768420244492,3.21528971,146.72,146.68,0.68360008]
[1768420245192,2.49486826,146.71,146.68,0.68360008]
[1768420246520,7.53620329,146.72,146.68,0.68360008]
[1768420246722,2.49486826,146.71,146.68,0.68360008]
[1768420248202,10.03107155,146.72,146.68,0.68360008]
[1768420249913,3.21528971,146.71,146.68,0.68360008]
[1768420250508,3.18528972,146.71,146.68,0.68360008]
[1768420250706,2.49486826,146.7,146.66,20.66127715]
[1768420251003,6.81727187,146.69,146.64,21.3476161]
[1768420251203,2.49486826,146.67,146.63,0.68633895]
[1768420252010,6.81727187,146.69,146.64,0.68633895]
[1768420252212,2.49486826,146.68,146.64,0.68633895]
[1768420253201,6.81727187,146.69,146.65,0.68633895]
[1768420253510,9.9723631,146.69,146.65,0.68633895]
[1768420254337,7.47749484,146.69,146.65,0.68633895]
[1768420256107,9.9723631,146.69,146.65,0.68633895]
[1768420257709,17.69890297,146.73,146.66,0.68633895]
[1768420258015,3.15509123,146.72,146.67,0.68633895]
[1768420258602,0.66022297,146.7,146.67,0.68633895]
[1768420258801,3.15509123,146.7,146.67,0.68633895]
[1768420259003,0.66022297,146.69,146.66,21.3476161]
[1768420259223,3.15509123,146.69,146.66,0.68633895]
[1768420259830,7.47733407,146.69,146.66,0.68633895]
[1768420260328,6.81680979,146.7,146.66,0.68633895]
[1768420260709,3.15509123,146.69,146.65,0.68633895]
[1768420260930,0.66022297,146.68,146.63,23.84248436]
[1768420261132,0.66022297,146.67,146.63,0.68633895]
[1768420262626,0.66022297,146.67,146.64,0.68633895]
[1768420263029,7.47831965,146.67,146.64,0.68633895]
[1768420263232,7.47831965,146.67,146.63,0.68633895]
[1768420264931,0.66022297,146.65,146.61,0.68633895]
[1768420265427,3.15509123,146.64,146.6,0.2]
[1768420265630,0.63022298,146.64,146.6,0.88633895]
[1768420266327,66.83228886,146.71,146.6,0.88633895]
[1768420266328,6.81811704,146.67,146.62,0.68633895]
[1768420266526,9.3129853,146.67,146.63,0.68633895]
[1768420266727,23.85858005,146.7,146.63,0.68633895]
[1768420267032,2.49486826,146.68,146.63,0.68633895]
[1768420267537,9.97274353,146.68,146.63,7.50614594]
[1768420267715,0.66022297,146.67,146.63,7.50614594]
[1768420268734,0.66022297,146.67,146.64,0.68633895]
[1768420268924,9.97274353,146.68,146.64,0.68633895]
[1768420269635,9.97274353,146.68,146.65,0.68633895]
[1768420269636,0.66022297,146.68,146.65,0.68633895]
[1768420269842,7.47752649,146.69,146.65,0.68633895]
[1768420270020,9.97239475,146.69,146.65,0.68633895]
[1768420270220,9.97239475,146.69,146.63,9.31458837]